bitfinex/quotes_BTCUSD_20250713
["timestamp","ask_amount","ask_price","bid_price","bid_amount"]
[1752448268999,0.76208821,118290.0,118280.0,0.3338]
[1752448271117,0.79540821,118290.0,118280.0,0.33384]
[1752448271328,0.79540821,118290.0,118280.0,0.20256]
[1752448271547,1.11929471,118290.0,118280.0,0.33384]
[1752448271753,1.13383556,118290.0,118280.0,0.20256]
[1752448271904,1.13383556,118290.0,118280.0,0.33392]
[1752448273963,1.13583556,118290.0,118280.0,0.33392]
[1752448274211,1.13683556,118290.0,118280.0,0.33392]
[1752448275778,1.13683556,118290.0,118280.0,0.20256]
[1752448275985,1.13683556,118290.0,118280.0,0.33384]
[1752448276898,1.13483556,118290.0,118280.0,0.33384]
[1752448277098,1.13783556,118290.0,118280.0,0.33384]
[1752448277436,1.13383556,118290.0,118280.0,0.3338]
[1752448277590,1.14083556,118290.0,118280.0,0.3348]
[1752448277756,1.14083556,118290.0,118280.0,0.20256]
[1752448277975,0.35454085,118280.0,118270.0,0.0004]
[1752448278181,1.10968956,118280.0,118270.0,0.20296]
[1752448278388,1.10868956,118280.0,118270.0,0.20296]
[1752448279027,1.10868956,118280.0,118270.0,0.33416]
[1752448279235,1.11068956,118280.0,118270.0,0.33516]
[1752448279437,1.11067483,118280.0,118270.0,0.33516]
[1752448279632,1.11067483,118280.0,118270.0,0.20256]
[1752448280015,1.10977426,118280.0,118270.0,0.2026]
[1752448280399,1.10977426,118280.0,118260.0,0.0024]
[1752448280556,0.68243205,118280.0,118270.0,0.2026]
[1752448280744,1.07596426,118280.0,118270.0,0.2026]
[1752448280951,0.016,118270.0,118260.0,0.0024]
[1752448281153,1.28597198,118270.0,118260.0,0.0024]
[1752448281564,1.28597198,118270.0,118260.0,0.0034]
[1752448281967,1.28597198,118270.0,118260.0,0.0044]
[1752448282173,1.28597198,118270.0,118260.0,0.13476]
[1752448282370,1.28797198,118270.0,118260.0,0.13576]
[1752448283251,1.28797198,118270.0,118260.0,0.13476]
[1752448283449,1.28997198,118270.0,118260.0,0.13476]
[1752448283826,1.28797198,118270.0,118260.0,0.13376]
[1752448284077,1.30797198,118270.0,118260.0,0.13376]
[1752448284275,0.9998697,118270.0,118260.0,0.13376]
[1752448284488,1.31097198,118270.0,118260.0,0.13376]
[1752448284698,1.29643113,118270.0,118260.0,0.0024]
[1752448284872,1.29643113,118270.0,118260.0,0.1338]
[1752448285112,1.28043113,118270.0,118260.0,0.1338]
[1752448285354,1.28043113,118270.0,118260.0,0.3364]
[1752448285960,1.28043113,118270.0,118260.0,0.33632]
[1752448285961,1.25960113,118270.0,118260.0,0.33632]
[1752448286208,0.91960113,118270.0,118260.0,0.36742]
[1752448286615,1.25960113,118270.0,118260.0,0.36742]
[1752448286825,1.25960113,118270.0,118260.0,0.36746]
[1752448287279,1.25957374,118270.0,118260.0,0.36746]
[1752448288091,1.24383221,118270.0,118260.0,0.36746]
[1752448289547,0.93572993,118270.0,118260.0,0.36746]
[1752448289751,1.24383221,118270.0,118260.0,0.36746]
[1752448290166,0.75853221,118270.0,118260.0,0.36746]
[1752448290378,0.75853221,118270.0,118260.0,0.2361]
[1752448290601,0.75853221,118270.0,118260.0,0.36738]
[1752448291975,0.76152221,118270.0,118260.0,0.33628]
[1752448293538,0.45341993,118270.0,118260.0,0.33628]
[1752448293750,0.76152221,118270.0,118260.0,0.33628]
[1752448295134,0.75853221,118270.0,118260.0,0.33628]
[1752448297178,0.75853221,118270.0,118260.0,0.36728]
[1752448300697,0.76152221,118270.0,118260.0,0.33628]
[1752448306226,0.76353221,118270.0,118260.0,0.33628]
[1752448306824,0.45542993,118270.0,118260.0,0.33628]
[1752448307111,0.76353221,118270.0,118260.0,0.33628]
[1752448307335,0.76152221,118270.0,118260.0,0.33628]
[1752448308701,0.75853221,118270.0,118260.0,0.35158]
[1752448308930,0.75853221,118270.0,118260.0,0.41698]
[1752448309148,0.75853221,118270.0,118260.0,0.40158]
[1752448309385,0.77903221,118270.0,118260.0,0.205]
[1752448309605,0.79223221,118270.0,118260.0,0.33588]
[1752448309850,0.79023221,118270.0,118260.0,0.33588]
[1752448310305,0.79023221,118270.0,118260.0,0.33788]
[1752448311417,0.79123221,118270.0,118260.0,0.33888]
[1752448314224,0.75953221,118270.0,118260.0,0.33888]
[1752448315685,0.75752221,118270.0,118260.0,0.33888]
[1752448318069,0.44941993,118270.0,118260.0,0.33888]
[1752448318281,0.75752221,118270.0,118260.0,0.33888]
[1752448319367,0.45139993,118270.0,118260.0,0.33888]
[1752448319578,0.75950221,118270.0,118260.0,0.33888]
[1752448321261,0.75752221,118270.0,118260.0,0.33888]
[1752448322756,0.75453221,118270.0,118260.0,0.38888]
[1752448323182,0.44642993,118270.0,118260.0,0.40448]
[1752448323401,0.44642993,118270.0,118260.0,0.42068]
[1752448324261,0.42642993,118270.0,118260.0,0.42068]
[1752448325834,0.08642993,118270.0,118260.0,0.42068]
[1752448327237,0.42642993,118270.0,118260.0,0.42068]
[1752448327480,0.001,118270.0,118260.0,0.72878228]
[1752448328452,0.001,118270.0,118260.0,0.42068]
[1752448329852,0.001,118270.0,118260.0,0.72878228]
[1752448330780,0.001,118270.0,118260.0,0.42068]
[1752448334375,0.001,118270.0,118260.0,0.72878228]
[1752448334580,0.001,118270.0,118260.0,0.42068]
[1752448337850,0.001,118270.0,118260.0,0.72878228]
[1752448339333,0.0675419,118280.0,118260.0,0.72778228]
[1752448339547,0.15297183,118280.0,118270.0,0.33940228]
[1752448339968,0.15297183,118280.0,118270.0,0.44472228]
[1752448340181,0.0675419,118280.0,118270.0,0.49472228]
[1752448340607,0.0685419,118280.0,118270.0,0.49472228]
[1752448341064,0.0675419,118280.0,118270.0,0.18862]
[1752448346361,0.0675419,118280.0,118270.0,0.49672228]
[1752448347731,0.0675419,118280.0,118270.0,0.18862]
[1752448348018,0.0675419,118280.0,118270.0,0.49672228]
[1752448349996,0.00324,118290.0,118270.0,0.49672228]
[1752448350209,0.08542993,118290.0,118280.0,0.13068]
[1752448350842,0.08866993,118290.0,118280.0,0.13068]
[1752448351608,0.08866993,118290.0,118280.0,0.13168]
[1752448352890,0.08866993,118290.0,118280.0,0.18168]
[1752448353419,0.08866993,118290.0,118280.0,0.0497114]
[1752448353631,0.09066993,118290.0,118280.0,0.0507114]
[1752448354486,0.09066993,118290.0,118280.0,0.1812714]
[1752448356756,0.002,118290.0,118280.0,0.82867596]
[1752448357402,0.002,118290.0,118280.0,0.52057368]
[1752448358036,0.00014968,118300.0,118280.0,0.51957368]
[1752448358292,0.00014968,118300.0,118290.0,0.30810228]
[1752448359110,0.00114968,118300.0,118290.0,0.30810228]
[1752448359838,0.00014968,118300.0,118290.0,0.38991368]
[1752448360110,0.00014968,118300.0,118290.0,0.41282011]
[1752448360331,0.00214968,118300.0,118290.0,0.50025004]
[1752448360552,0.00214968,118300.0,118290.0,0.89025004]
[1752448360553,0.00114968,118300.0,118290.0,0.89025004]
[1752448361419,0.00114968,118300.0,118290.0,0.89425004]
[1752448365347,0.00114968,118300.0,118290.0,1.20201004]
[1752448371197,0.00114968,118300.0,118290.0,1.46253004]
[1752448371648,0.00114968,118300.0,118290.0,1.46590704]
[1752448372079,0.00114968,118300.0,118290.0,1.36062704]
[1752448374053,0.00114968,118300.0,118290.0,1.15814704]
[1752448375314,0.00114968,118300.0,118290.0,1.46590704]
[1752448376380,0.00114968,118300.0,118290.0,0.89728476]
[1752448376612,0.00628968,118300.0,118290.0,0.3634314]
[1752448376826,0.03848968,118300.0,118290.0,0.4935914]
[1752448377029,0.03848968,118300.0,118290.0,0.4936714]
[1752448377811,0.03848968,118300.0,118290.0,0.3634314]
[1752448378234,0.03848968,118300.0,118290.0,0.4936714]
[1752448378479,0.03848968,118300.0,118290.0,0.80177368]
[1752448379809,0.03848968,118300.0,118290.0,0.93254446]
[1752448379810,0.00114968,118300.0,118290.0,0.93254446]
[1752448380588,0.00114968,118300.0,118290.0,0.98254446]
[1752448380788,0.00114968,118300.0,118290.0,0.87726446]
[1752448381938,0.00114968,118300.0,118290.0,1.17296446]
[1752448383598,0.00114968,118300.0,118290.0,0.97052446]
[1752448385339,0.00114968,118300.0,118290.0,1.27828446]
[1752448390835,0.00114968,118300.0,118290.0,1.17300446]
[1752448391241,0.00114968,118300.0,118290.0,0.97052446]
[1752448395218,0.00114968,118300.0,118290.0,1.27828446]
[1752448395384,0.002,118310.0,118300.0,0.06425225]
[1752448395595,0.002,118310.0,118300.0,1.00834446]
[1752448395804,0.1036219,118330.0,118300.0,1.00834446]
[1752448396142,0.1036219,118330.0,118320.0,0.30810228]
[1752448396280,0.1056319,118330.0,118320.0,0.43806228]
[1752448396486,0.1056319,118330.0,118320.0,0.12996]
[1752448397800,0.1066319,118330.0,118320.0,0.12996]
[1752448398493,0.1086319,118330.0,118320.0,0.12996]
[1752448398692,0.1086319,118330.0,118320.0,0.15469228]
[1752448405430,0.04109,118330.0,118320.0,0.20440368]
[1752448405692,0.04109,118330.0,118320.0,0.51250596]
[1752448406128,0.04109,118330.0,118320.0,0.5209075]
[1752448410029,0.03908,118330.0,118320.0,0.5209075]
[1752448410435,0.005,118330.0,118320.0,0.53544835]
[1752448410642,0.03508,118350.0,118340.0,0.0497114]
[1752448410861,0.03723001,118350.0,118340.0,0.1795114]
[1752448413380,0.03723001,118350.0,118340.0,0.1805114]
[1752448413619,0.03723001,118350.0,118340.0,0.3829514]
[1752448416037,0.03523001,118350.0,118340.0,0.3829514]
[1752448416708,0.00215001,118350.0,118340.0,0.70559453]
[1752448416944,0.00215001,118350.0,118340.0,0.79102446]
[1752448418201,0.00513001,118350.0,118340.0,0.79102446]
[1752448418445,0.02103001,118350.0,118340.0,0.79102446]
[1752448419667,0.02103001,118350.0,118340.0,0.48292218]
[1752448419890,0.03603001,118350.0,118340.0,0.48292218]
[1752448420320,0.03603001,118350.0,118340.0,0.88386218]
[1752448426635,0.33342328,118400.0,118390.0,0.17227846]
[1752448426808,0.7291055,118400.0,118390.0,0.30203846]
[1752448428170,0.7361055,118400.0,118390.0,0.30203846]
[1752448428382,0.7421055,118400.0,118390.0,0.30303846]
[1752448428591,0.7450855,118400.0,118390.0,0.30303846]
[1752448429588,0.7771855,118400.0,118390.0,0.30303846]
[1752448429831,0.16098094,118400.0,118390.0,0.30303846]
[1752448430034,0.77982485,118400.0,118390.0,0.50543846]
[1752448430249,0.78546631,118400.0,118390.0,0.50543846]
[1752448430681,0.47736403,118400.0,118390.0,0.50543846]
[1752448430867,0.47736403,118400.0,118390.0,0.55514986]
[1752448431113,0.47736403,118400.0,118390.0,0.89514986]
[1752448431334,0.14394075,118400.0,118390.0,0.89514986]
[1752448431993,0.14394075,118400.0,118390.0,0.89414986]
[1752448431994,0.13794075,118400.0,118390.0,0.89414986]
[1752448432264,0.14094075,118400.0,118390.0,0.89414986]
[1752448432487,0.04023001,118400.0,118390.0,0.89414986]
[1752448432917,0.02393001,118400.0,118390.0,0.89627986]
[1752448433133,0.00813001,118400.0,118390.0,0.89627986]
[1752448433347,0.01113001,118400.0,118390.0,0.89627986]
[1752448433565,0.00513001,118400.0,118390.0,0.89627986]
[1752448433776,0.00813001,118400.0,118390.0,0.89627986]
[1752448435272,0.00315001,118400.0,118390.0,0.89627986]
[1752448436333,0.00315001,118400.0,118390.0,0.55627986]
[1752448437077,0.00315001,118400.0,118390.0,0.55871986]
[1752448437208,0.00315001,118400.0,118390.0,0.55627986]
[1752448439751,0.00315001,118400.0,118390.0,0.86438214]
[1752448440019,0.00315001,118400.0,118390.0,0.87988214]
[1752448440203,0.00315001,118400.0,118390.0,0.89852214]
[1752448440689,0.00315001,118400.0,118390.0,0.55623986]
[1752448441139,0.00315001,118400.0,118390.0,0.42651986]
[1752448441374,0.00315001,118400.0,118390.0,0.55623986]
[1752448442564,0.00825001,118400.0,118390.0,0.42651986]
[1752448442796,0.04075001,118400.0,118390.0,0.55623986]
[1752448444662,0.00825001,118400.0,118390.0,0.55623986]
[1752448444885,0.00315001,118400.0,118390.0,0.55623986]
[1752448446010,0.41639419,118400.0,118390.0,0.55410986]
[1752448449823,0.04075001,118400.0,118390.0,0.55410986]
[1752448450090,0.00518001,118400.0,118390.0,0.66146986]
[1752448451851,0.00315001,118400.0,118390.0,0.66146986]
[1752448452501,0.00825001,118400.0,118390.0,0.66146986]
[1752448452761,0.02455001,118400.0,118390.0,0.66146986]
[1752448453656,0.13498514,118390.0,118380.0,0.35021553]
[1752448453881,0.13498514,118390.0,118380.0,0.36343325]
[1752448454838,0.13498514,118390.0,118380.0,0.49311325]
[1752448455677,0.13598514,118390.0,118380.0,0.49311325]
[1752448455883,0.13598514,118390.0,118380.0,0.4785724]
[1752448458008,0.13598514,118390.0,118380.0,0.49311325]
[1752448458488,0.13598514,118390.0,118380.0,0.81711553]
[1752448458977,0.13598514,118390.0,118380.0,0.81739553]
[1752448460951,0.13598514,118390.0,118380.0,0.90282546]
[1752448461193,0.12755539,118390.0,118380.0,0.90282546]
[1752448461656,0.12755539,118390.0,118380.0,1.19852546]
[1752448462951,0.11912564,118390.0,118380.0,1.09332546]
[1752448463187,0.11069589,118390.0,118380.0,1.09332546]
[1752448463436,0.11069589,118390.0,118380.0,2.09332546]
[1752448463676,0.10226614,118390.0,118380.0,2.09332546]
[1752448464139,0.10226614,118390.0,118380.0,1.89100546]
[1752448465198,0.10226614,118390.0,118380.0,2.19852546]
[1752448466412,0.09383696,118390.0,118380.0,2.19852546]
[1752448466676,0.08540778,118390.0,118380.0,2.19852546]
[1752448467103,0.0769786,118390.0,118380.0,2.09332546]
[1752448467323,0.0769786,118390.0,118380.0,1.89100546]
[1752448467534,0.06854942,118390.0,118380.0,1.58290318]
[1752448467750,0.06854942,118390.0,118380.0,1.89100546]
[1752448467958,0.06012024,118390.0,118380.0,1.89100546]
[1752448468400,0.05169106,118390.0,118380.0,1.89100546]
[1752448468612,0.04326188,118390.0,118380.0,1.89100546]
[1752448469047,0.0348327,118390.0,118380.0,1.89100546]
[1752448469438,0.02640352,118390.0,118380.0,1.89100546]
[1752448469949,0.01797434,118390.0,118380.0,1.89100546]
[1752448470149,0.00954582,118390.0,118380.0,1.89100546]
[1752448470424,0.00954582,118390.0,118380.0,1.89072546]
[1752448470631,0.0011173,118390.0,118380.0,1.89072546]
[1752448471041,0.00015001,118400.0,118390.0,0.01454085]
[1752448471242,0.00015001,118400.0,118390.0,0.14462085]
[1752448471545,0.00317001,118400.0,118390.0,0.14462085]
[1752448471974,0.00528001,118400.0,118390.0,0.14462085]
[1752448472852,0.00628001,118400.0,118390.0,0.14462085]
[1752448473072,0.00828001,118400.0,118390.0,0.14462085]
[1752448475238,0.00828001,118400.0,118390.0,0.45214085]
[1752448476105,0.00617001,118400.0,118390.0,0.45214085]
[1752448476575,0.00315001,118400.0,118390.0,0.45214085]
[1752448478136,0.00617001,118400.0,118390.0,0.45214085]
[1752448481962,0.00828001,118400.0,118390.0,0.45214085]
[1752448484367,0.04508001,118400.0,118390.0,0.45170085]
[1752448489135,0.04508001,118400.0,118390.0,0.45214085]
[1752448489346,0.00828001,118400.0,118390.0,0.45214085]
[1752448494134,0.00617001,118400.0,118390.0,0.45214085]
[1752448495336,0.00828001,118400.0,118390.0,0.45214085]
[1752448496228,0.02658001,118400.0,118390.0,0.45214085]
[1752448498713,0.04508001,118400.0,118390.0,0.45214085]
[1752448498930,0.04508001,118400.0,118390.0,0.30752]
[1752448499142,0.27580993,118400.0,118390.0,0.43708]
[1752448500670,0.04508001,118400.0,118390.0,0.43708]
[1752448500930,0.00828001,118400.0,118390.0,0.66824992]
[1752448501133,0.00315001,118400.0,118390.0,0.68279077]
[1752448501342,0.00315001,118400.0,118390.0,1.31305062]
[1752448501552,0.0022,118410.0,118400.0,0.03264085]
[1752448501774,0.00224996,118410.0,118400.0,0.59737062]
[1752448501992,0.00344,118420.0,118400.0,0.64737062]
[1752448502215,0.0002,118420.0,118410.0,0.37483077]
[1752448502483,0.0002,118420.0,118410.0,0.39337077]
[1752448502885,0.0002,118420.0,118410.0,0.41077077]
[1752448503146,0.0002,118420.0,118410.0,0.48744671]
[1752448503380,0.0002,118420.0,118410.0,0.57287664]
[1752448504744,0.00524,118430.0,118420.0,0.0386]
[1752448504745,0.002,118430.0,118420.0,0.0386]
[1752448504963,0.002,118430.0,118420.0,0.49641664]
[1752448505176,0.0002,118440.0,118430.0,0.32194671]
[1752448505383,0.0002,118440.0,118430.0,0.55683664]
[1752448505596,0.0002,118440.0,118430.0,0.57593664]
[1752448505803,0.0002,118440.0,118430.0,0.57621664]
[1752448507049,0.0002,118450.0,118440.0,0.39460586]
[1752448507274,0.00069981,118450.0,118440.0,0.48075579]
[1752448508043,0.00069981,118450.0,118440.0,0.48047579]
[1752448508515,0.00393981,118450.0,118440.0,0.15041078]
[1752448508757,0.00393981,118450.0,118440.0,0.27993078]
[1752448509214,0.00069981,118450.0,118440.0,0.27993078]
[1752448509674,0.00069981,118450.0,118440.0,0.53733664]
[1752448509900,0.00069981,118450.0,118440.0,0.62623664]
[1752448510358,0.00069981,118450.0,118440.0,0.62651664]
[1752448510582,0.00069981,118450.0,118440.0,0.64162813]
[1752448510791,0.00169981,118450.0,118440.0,0.64162813]
[1752448511453,0.00069981,118450.0,118440.0,0.64162813]
[1752448511676,0.00344,118470.0,118450.0,0.0387]
[1752448511898,0.00034988,118470.0,118460.0,0.45186671]
[1752448512812,0.00034988,118470.0,118460.0,0.55679664]
[1752448513712,0.00034988,118470.0,118460.0,0.10041078]
[1752448513927,0.00560988,118470.0,118460.0,0.22989078]
[1752448514352,0.00660988,118470.0,118460.0,0.22989078]
[1752448515057,0.00134988,118470.0,118460.0,0.22989078]
[1752448515283,0.00134988,118470.0,118460.0,0.88189664]
[1752448518213,0.00134988,118470.0,118460.0,0.84469664]
[1752448519391,0.00134988,118470.0,118460.0,0.73953664]
[1752448521342,0.00134988,118470.0,118460.0,0.76458469]
[1752448521549,0.00458988,118470.0,118460.0,0.76458469]
[1752448521977,0.00458988,118470.0,118460.0,0.45717883]
[1752448522175,0.00660988,118470.0,118460.0,0.45713883]
[1752448522382,0.04450988,118470.0,118460.0,0.45713883]
[1752448522833,0.35191574,118470.0,118460.0,0.15448805]
[1752448523345,0.35191574,118470.0,118460.0,0.02504805]
[1752448523546,0.35191574,118470.0,118460.0,0.15448805]
[1752448523784,0.35191574,118470.0,118460.0,0.12944]
[1752448525146,0.04450988,118470.0,118460.0,0.12944]
[1752448525416,0.35191574,118470.0,118460.0,0.43676]
[1752448527473,0.04450988,118470.0,118460.0,0.43676]
[1752448527687,0.35191574,118470.0,118460.0,0.43676]
[1752448528844,0.35191574,118470.0,118460.0,0.30732]
[1752448529330,0.43734567,118470.0,118460.0,0.43676]
[1752448534145,0.45308151,118470.0,118460.0,0.43676]
[1752448534353,0.46095464,118470.0,118460.0,0.43676]
[1752448534648,0.45308151,118470.0,118460.0,0.43676]
[1752448535989,0.79308151,118470.0,118460.0,0.30732]
[1752448536200,0.79308151,118470.0,118460.0,0.43676]
[1752448536854,0.80095931,118470.0,118460.0,0.43676]
[1752448537282,0.49355345,118470.0,118460.0,0.43676]
[1752448537467,0.80095931,118470.0,118460.0,0.43676]
[1752448537916,0.77734567,118470.0,118460.0,0.43676]
[1752448540597,0.78522644,118470.0,118460.0,0.43676]
[1752448541858,0.77734567,118470.0,118460.0,0.43676]
[1752448542183,0.79310679,118470.0,118460.0,0.43676]
[1752448542389,0.77734567,118470.0,118460.0,0.43676]
[1752448542647,0.79310625,118470.0,118460.0,0.43676]
[1752448543067,0.79310625,118470.0,118460.0,0.33164]
[1752448546978,0.77734567,118470.0,118460.0,0.33164]
[1752448547193,1.10050403,118470.0,118460.0,0.2022]
[1752448547412,0.79309817,118470.0,118460.0,0.33164]
[1752448548186,0.79209817,118470.0,118460.0,0.2022]
[1752448548388,0.79209817,118470.0,118460.0,0.33164]
[1752448548609,0.79509817,118470.0,118460.0,0.33164]
[1752448549162,1.11704488,118470.0,118460.0,0.2022]
[1752448549366,1.11704488,118470.0,118460.0,0.33164]
[1752448549751,1.11804488,118470.0,118460.0,0.33164]
[1752448550401,1.11404488,118470.0,118460.0,0.33164]
[1752448550729,1.12204488,118470.0,118460.0,0.33164]
[1752448551641,1.12204256,118470.0,118460.0,0.33164]
[1752448551842,0.8146367,118470.0,118460.0,0.33164]
[1752448552245,0.8285267,118470.0,118460.0,0.33164]
[1752448552553,0.8116367,118470.0,118460.0,0.33164]
[1752448552759,0.8156367,118470.0,118460.0,0.33164]
[1752448552960,1.12304256,118470.0,118460.0,0.33164]
[1752448554348,0.8156367,118470.0,118460.0,0.33164]
[1752448554506,1.1230391,118470.0,118460.0,0.33164]
[1752448554673,1.13091297,118470.0,118460.0,0.33164]
[1752448554879,1.15622197,118470.0,118460.0,0.33164]
[1752448555491,1.25689197,118470.0,118460.0,0.33164]
[1752448559868,1.25689197,118470.0,118460.0,0.2022]
[1752448560066,1.25689197,118470.0,118460.0,0.33168]
[1752448560302,1.23327138,118470.0,118460.0,0.33168]
[1752448560478,1.25687232,118470.0,118460.0,0.33168]
[1752448561232,1.34566232,118470.0,118460.0,0.33168]
[1752448561444,1.25687232,118470.0,118460.0,0.33168]
[1752448562463,0.35454085,118460.0,118430.0,0.10516]
[1752448562675,0.65486172,118440.0,118430.0,0.10516]
[1752448562891,0.74029165,118440.0,118430.0,0.30744]
[1752448563136,0.74337165,118440.0,118430.0,0.30744]
[1752448563579,0.74337165,118440.0,118430.0,0.43692]
[1752448563991,0.74337165,118440.0,118430.0,0.30744]
[1752448564212,0.75910211,118440.0,118430.0,0.43692]
[1752448566797,0.76010211,118440.0,118430.0,0.43692]
[1752448568209,0.76010828,118440.0,118430.0,0.43692]
[1752448568618,0.76010827,118440.0,118430.0,0.43692]
[1752448569467,0.76010827,118440.0,118430.0,0.30744]
[1752448569624,0.76010827,118440.0,118430.0,0.43692]
[1752448576877,0.76011075,118440.0,118430.0,0.43692]
[1752448577992,0.70229165,118440.0,118430.0,0.43692]
[1752448578925,0.39283579,118440.0,118430.0,0.47871]
[1752448579830,0.42542993,118440.0,118430.0,0.47871]
[1752448580042,0.73283579,118440.0,118430.0,0.47871]
[1752448581625,0.42542993,118440.0,118430.0,0.47871]
[1752448583576,0.34,118450.0,118430.0,0.44211]
[1752448583782,0.42542993,118450.0,118440.0,0.0367]
[1752448583983,0.42542993,118450.0,118440.0,0.03984]
[1752448584190,0.42542993,118450.0,118440.0,0.04189]
[1752448585497,0.42542993,118450.0,118440.0,0.00189]
[1752448587135,0.42642993,118450.0,118440.0,0.00189]
[1752448587337,0.42742993,118450.0,118440.0,0.00189]
[1752448587727,0.42642993,118450.0,118440.0,0.00189]
[1752448587934,0.42842993,118450.0,118440.0,0.00189]
[1752448588355,0.003,118450.0,118440.0,0.31140586]
[1752448588570,0.003,118450.0,118440.0,0.34870586]
[1752448591292,0.001,118450.0,118440.0,0.34870586]
[1752448591925,0.00034988,118470.0,118440.0,0.34870586]
[1752448592139,0.0884176,118470.0,118450.0,0.43684586]
[1752448592348,0.0884176,118470.0,118460.0,0.03772]
[1752448593620,0.0904976,118470.0,118460.0,0.00202]
[1752448593827,0.40094346,118470.0,118460.0,0.13142]
[1752448594028,0.40030567,118470.0,118460.0,0.13142]
[1752448594453,0.40130567,118470.0,118460.0,0.13142]
[1752448595083,0.43389981,118470.0,118460.0,0.13142]
[1752448596105,0.42877981,118470.0,118460.0,0.16912]
[1752448596316,0.34334988,118470.0,118460.0,0.47863586]
[1752448596537,0.00334988,118470.0,118460.0,0.47863586]
[1752448597166,0.00034988,118470.0,118460.0,0.47863586]
[1752448597391,0.00134988,118470.0,118460.0,0.47863586]
[1752448598037,0.00034988,118470.0,118460.0,0.17123]
[1752448599101,0.00018102,118470.0,118460.0,0.17223]
[1752448603132,0.00018102,118470.0,118460.0,0.47963586]
[1752448605133,0.00018102,118470.0,118460.0,0.17223]
[1752448607424,0.00018102,118470.0,118460.0,0.17012]
[1752448609656,0.34018102,118470.0,118460.0,0.17012]
[1752448609869,0.34530102,118470.0,118460.0,0.00302]
[1752448610089,0.77643681,118470.0,118460.0,0.13036]
[1752448610323,0.84397871,118470.0,118460.0,0.001]
[1752448610746,0.85971544,118470.0,118460.0,0.001]
[1752448611013,0.94514537,118470.0,118460.0,0.001]
[1752448611231,0.85971544,118470.0,118460.0,0.13036]
[1752448611447,0.85971544,118470.0,118460.0,0.12936]
[1752448611670,0.85971579,118470.0,118460.0,0.12936]
[1752448611888,0.86071579,118470.0,118460.0,0.12936]
[1752448612107,0.85971579,118470.0,118460.0,0.12936]
[1752448612324,0.82141579,118470.0,118460.0,0.12936]
[1752448612498,0.82441579,118470.0,118460.0,0.12936]
[1752448612908,0.86071579,118470.0,118460.0,0.12936]
[1752448614483,0.86171579,118470.0,118460.0,0.12936]
[1752448614938,0.79317389,118470.0,118460.0,0.12936]
[1752448615078,0.79617389,118470.0,118460.0,0.12936]
[1752448615510,0.82107989,118470.0,118460.0,0.12936]
[1752448616167,0.79617389,118470.0,118460.0,0.12936]
[1752448616402,0.48876803,118470.0,118460.0,0.12936]
[1752448616644,0.79617389,118470.0,118460.0,0.12936]
[1752448620250,0.79617389,118470.0,118460.0,0.33164]
[1752448620471,0.79617085,118470.0,118460.0,0.33164]
[1752448620903,0.79617075,118470.0,118460.0,0.33164]
[1752448622420,0.79616621,118470.0,118460.0,0.33164]
[1752448623982,0.48876035,118470.0,118460.0,0.33164]
[1752448624195,0.79616621,118470.0,118460.0,0.33164]
[1752448625771,0.79616621,118470.0,118460.0,0.20228]
[1752448625978,0.79616621,118470.0,118460.0,0.33164]
[1752448627310,0.78043681,118470.0,118460.0,0.33164]
[1752448627760,0.78043681,118470.0,118460.0,0.43164]
[1752448631185,0.78043681,118470.0,118460.0,0.43372]
[1752448631186,0.74413681,118470.0,118460.0,0.43372]
[1752448634590,0.74413681,118470.0,118460.0,0.43164]
[1752448634792,0.78643681,118470.0,118460.0,0.43164]
[1752448640329,0.78643681,118470.0,118460.0,0.30228]
[1752448640544,0.78643681,118470.0,118460.0,0.4316]
[1752448645429,0.47903095,118470.0,118460.0,0.4316]
[1752448645654,0.78643681,118470.0,118460.0,0.4316]
[1752448647558,0.78643681,118470.0,118460.0,0.30228]
[1752448647806,0.78643681,118470.0,118460.0,0.4316]
[1752448649651,0.80222266,118470.0,118460.0,0.4316]
[1752448650980,0.45833095,118470.0,118460.0,0.4316]
[1752448651213,0.43673095,118470.0,118460.0,0.45467]
[1752448651427,0.74413681,118470.0,118460.0,0.45467]
[1752448651646,0.73901681,118470.0,118460.0,0.47567]
[1752448651866,0.43161095,118470.0,118460.0,0.47567]
[1752448653563,0.43161095,118470.0,118460.0,0.47778]
[1752448653786,0.09161095,118470.0,118460.0,0.47778]
[1752448654463,0.43161095,118470.0,118460.0,0.47778]
[1752448655836,0.43161095,118470.0,118460.0,0.47567]
[1752448656053,0.73901681,118470.0,118460.0,0.45467]
[1752448656480,0.73901681,118470.0,118460.0,0.47757]
[1752448656894,0.43161095,118470.0,118460.0,0.47757]
[1752448658974,0.73901681,118470.0,118460.0,0.47757]
[1752448660399,0.73901681,118470.0,118460.0,0.34825]
[1752448660640,0.73901681,118470.0,118460.0,0.47753]
[1752448662281,0.02,118480.0,118470.0,0.05884085]
[1752448662490,0.02,118480.0,118470.0,0.67783257]
[1752448662728,0.02,118480.0,118470.0,0.45585664]
[1752448663567,0.02,118480.0,118470.0,0.45885664]
[1752448664668,0.021,118480.0,118470.0,0.45885664]
[1752448665084,0.021,118480.0,118470.0,0.48364541]
[1752448665298,0.02,118480.0,118470.0,0.48364541]
[1752448665735,0.02,118480.0,118470.0,0.17823955]
[1752448665947,0.02,118480.0,118470.0,0.48564541]
[1752448667873,0.01157704,118480.0,118470.0,0.48564541]
[1752448668323,0.00315408,118480.0,118470.0,0.48564541]
[1752448668744,0.0002,118490.0,118480.0,0.0419]
[1752448668954,0.0002,118490.0,118480.0,0.17532]
[1752448670013,0.0002,118490.0,118480.0,0.17632]
[1752448670455,0.0002,118490.0,118480.0,0.17932]
[1752448671781,0.0002,118490.0,118480.0,0.04797]
[1752448672082,0.30760586,118490.0,118480.0,0.00607]
[1752448672292,0.67360586,118490.0,118480.0,0.004]
[1752448672508,0.65270586,118490.0,118480.0,0.13324]
[1752448672926,0.65270586,118490.0,118480.0,0.13224]
[1752448673138,0.65270586,118490.0,118480.0,0.12924]
[1752448673350,0.65270586,118490.0,118480.0,0.001]
[1752448673533,0.65270586,118490.0,118480.0,0.13024]
[1752448675146,0.3402,118490.0,118480.0,0.17591]
[1752448675627,0.3402,118490.0,118480.0,0.48542586]
[1752448677156,0.3402,118490.0,118480.0,0.17802]
[1752448677365,0.3402,118490.0,118480.0,0.17591]
[1752448679521,0.3402,118490.0,118480.0,0.17802]
[1752448680778,0.3402,118490.0,118480.0,0.17591]
[1752448681443,0.65066586,118490.0,118480.0,0.13231]
[1752448681622,0.65277586,118490.0,118480.0,0.13231]
[1752448682068,0.34537,118490.0,118480.0,0.13231]
[1752448683587,0.3402,118490.0,118480.0,0.13231]